bitfinex/quotes_BTCUSD_20250730
["timestamp","ask_amount","ask_price","bid_price","bid_amount"]
[1753875292993,0.07055558,118130.0,118120.0,0.68354297]
[1753875293197,0.07055558,118130.0,118120.0,0.81518297]
[1753875293577,0.07902018,118130.0,118120.0,0.81518297]
[1753875293780,0.07055558,118130.0,118120.0,0.81518297]
[1753875295309,0.087485,118130.0,118120.0,0.2717282]
[1753875295546,0.07055558,118130.0,118120.0,0.41183366]
[1753875295974,0.07902025,118130.0,118120.0,0.41183366]
[1753875296180,0.07055558,118130.0,118120.0,0.41183366]
[1753875296754,0.07055558,118130.0,118120.0,0.72232352]
[1753875297746,0.07055558,118130.0,118120.0,0.41183366]
[1753875297966,0.07902032,118130.0,118120.0,0.41183366]
[1753875298163,0.08748528,118130.0,118120.0,0.41183366]
[1753875298367,0.09595038,118130.0,118120.0,0.2717282]
[1753875298562,0.27372063,118130.0,118120.0,0.41183402]
[1753875298784,0.29915963,118130.0,118120.0,0.41183409]
[1753875298993,0.29915955,118130.0,118120.0,0.39490252]
[1753875299222,0.20778857,118130.0,118120.0,0.40336834]
[1753875299421,0.12985455,118130.0,118120.0,0.41183402]
[1753875299626,0.12985455,118130.0,118120.0,0.41183409]
[1753875299826,0.11292428,118130.0,118120.0,0.42876522]
[1753875300025,0.12138938,118130.0,118120.0,0.42876522]
[1753875300228,0.12985463,118130.0,118120.0,0.41183409]
[1753875300636,0.12138938,118130.0,118120.0,0.42029962]
[1753875300835,0.11292428,118130.0,118120.0,0.42029962]
[1753875301236,0.12138938,118130.0,118120.0,0.41183409]
[1753875301562,0.12985463,118130.0,118120.0,0.41183409]
[1753875301895,0.29915963,118130.0,118120.0,0.0854773]
[1753875302118,0.62267433,118130.0,118120.0,0.2170773]
[1753875302326,0.31218447,118130.0,118120.0,0.2170773]
[1753875302551,0.30371937,118130.0,118120.0,0.1326]
[1753875303024,0.30963177,118130.0,118120.0,0.1326]
[1753875303717,0.30371937,118130.0,118120.0,0.1326]
[1753875303954,0.29971937,118130.0,118120.0,0.1316]
[1753875304171,0.30963062,118130.0,118120.0,0.1326]
[1753875304403,0.61520923,118130.0,118120.0,0.1326]
[1753875304656,0.31062934,118130.0,118120.0,0.1326]
[1753875306120,0.64924934,118130.0,118120.0,0.1326]
[1753875307301,0.65771437,118130.0,118120.0,0.1326]
[1753875308464,0.6518044,118130.0,118120.0,0.1326]
[1753875309498,0.64333937,118130.0,118120.0,0.1326]
[1753875313546,0.64924608,118130.0,118120.0,0.1326]
[1753875316113,0.64828608,118130.0,118120.0,0.1326]
[1753875322360,0.65617074,118130.0,118120.0,0.1326]
[1753875324938,0.6262162,118130.0,118120.0,0.1326]
[1753875325740,0.6262162,118130.0,118120.0,0.14106596]
[1753875326154,0.6262162,118130.0,118120.0,0.31253529]
[1753875326380,0.6262162,118130.0,118120.0,0.32100118]
[1753875326595,0.6262162,118130.0,118120.0,0.31253529]
[1753875326799,0.62623476,118130.0,118120.0,0.13475]
[1753875327224,0.62623479,118130.0,118120.0,0.13475]
[1753875328615,0.62623479,118130.0,118120.0,0.14321596]
[1753875328881,0.93838172,118130.0,118120.0,0.13475]
[1753875329525,0.93838172,118130.0,118120.0,0.31253529]
[1753875329768,0.62623479,118130.0,118120.0,0.329467]
[1753875329991,0.62623479,118130.0,118120.0,0.32100118]
[1753875330199,0.62623479,118130.0,118120.0,0.14321596]
[1753875330608,0.62623479,118130.0,118120.0,0.15168185]
[1753875330824,0.62623479,118130.0,118120.0,0.13475]
[1753875331056,0.71071209,118130.0,118120.0,0.13475]
[1753875331272,0.94326646,118130.0,118120.0,0.14321596]
[1753875331490,0.94326646,118130.0,118120.0,0.1326]
[1753875331706,0.94326646,118130.0,118120.0,0.001]
[1753875331912,1.23227601,118130.0,118120.0,0.1324]
[1753875332123,0.99972164,118130.0,118120.0,0.1324]
[1753875332606,0.94226646,118130.0,118120.0,0.1324]
[1753875332817,1.01985346,118130.0,118120.0,0.1324]
[1753875333659,1.01585346,118130.0,118120.0,0.1314]
[1753875333904,0.04873228,118110.0,118100.0,0.25305881]
[1753875334115,0.38735221,118110.0,118100.0,0.47406611]
[1753875334752,0.39581853,118110.0,118100.0,0.46559936]
[1753875335188,0.38735221,118110.0,118100.0,0.46559936]
[1753875335582,0.38735221,118110.0,118100.0,0.77674073]
[1753875335792,0.38835228,118110.0,118100.0,0.77974073]
[1753875336009,0.39681853,118110.0,118100.0,0.77974073]
[1753875336237,0.38835221,118110.0,118100.0,0.77974073]
[1753875336970,0.39681853,118110.0,118100.0,0.77974073]
[1753875337173,0.42082853,118110.0,118100.0,0.77127391]
[1753875337813,0.42929492,118110.0,118100.0,0.74385434]
[1753875337933,0.43776153,118110.0,118100.0,0.74385434]
[1753875338133,0.42929492,118110.0,118100.0,0.44218001]
[1753875338332,0.43776138,118110.0,118100.0,0.45064698]
[1753875338555,0.46133958,118110.0,118100.0,0.45911387]
[1753875338776,0.45287326,118110.0,118100.0,0.45911387]
[1753875338991,0.45287326,118110.0,118100.0,0.76925524]
[1753875339419,0.41236221,118110.0,118100.0,0.76925524]
[1753875339629,0.41236221,118110.0,118100.0,0.79369524]
[1753875340076,0.41236221,118110.0,118100.0,0.79667524]
[1753875340312,0.37142,118110.0,118100.0,0.79667524]
[1753875340529,0.33962,118110.0,118100.0,0.82797524]
[1753875340739,0.33962,118110.0,118100.0,0.91245254]
[1753875341391,0.33962,118110.0,118100.0,0.79667524]
[1753875344586,0.33962,118110.0,118100.0,0.81287524]
[1753875344825,0.33962,118110.0,118100.0,0.79667524]
[1753875348340,0.33962,118110.0,118100.0,0.82877524]
[1753875349845,0.33962,118110.0,118100.0,0.79667524]
[1753875350491,0.33962,118110.0,118100.0,0.88115254]
[1753875352410,0.37938,118110.0,118100.0,0.88115254]
[1753875353488,0.35502,118110.0,118100.0,0.88115254]
[1753875353899,0.33962,118110.0,118100.0,0.88115254]
[1753875356850,0.33962,118110.0,118100.0,1.03611169]
[1753875359682,0.35472,118110.0,118100.0,1.03611169]
[1753875360175,0.33962,118110.0,118100.0,1.03611169]
[1753875360435,0.35502,118110.0,118100.0,1.03611169]
[1753875360697,0.36398,118110.0,118100.0,1.03611169]
[1753875360938,0.33962,118110.0,118100.0,1.03611169]
[1753875361130,0.38018,118110.0,118100.0,1.03611169]
[1753875362443,0.35582,118110.0,118100.0,1.03611169]
[1753875362805,0.33962,118110.0,118100.0,1.03611169]
[1753875364386,0.35552,118110.0,118100.0,1.03611169]
[1753875364876,0.37988,118110.0,118100.0,1.03611169]
[1753875365307,0.39538,118110.0,118100.0,1.03611169]
[1753875365791,0.39538,118110.0,118100.0,0.54359117]
[1753875366026,0.39748,118110.0,118100.0,1.00869169]
[1753875366864,0.39748,118110.0,118100.0,0.87729169]
[1753875367101,0.40055,118110.0,118100.0,1.00841169]
[1753875369817,0.39748,118110.0,118100.0,1.00841169]
[1753875373196,0.35552,118110.0,118100.0,1.03530169]
[1753875373599,0.39498,118110.0,118100.0,1.03530169]
[1753875374269,0.39498,118110.0,118100.0,1.01157169]
[1753875374510,0.39498,118110.0,118100.0,1.00841169]
[1753875375608,0.39498,118110.0,118100.0,1.03214169]
[1753875376332,0.37988,118110.0,118100.0,1.03530169]
[1753875378464,0.35552,118110.0,118100.0,1.03530169]
[1753875380259,0.33962,118110.0,118100.0,1.03530169]
[1753875380479,0.33962,118110.0,118100.0,1.26785195]
[1753875380728,0.33962,118110.0,118100.0,1.28435195]
[1753875380924,0.33962,118110.0,118100.0,1.29935195]
[1753875381416,0.33962,118110.0,118100.0,1.63935195]
[1753875385133,0.33962,118110.0,118100.0,1.60785195]
[1753875385396,0.3958,118110.0,118100.0,1.34841169]
[1753875385609,0.39875,118110.0,118100.0,0.41004117]
[1753875385817,0.39875,118110.0,118100.0,0.68907413]
[1753875386698,0.39875,118110.0,118100.0,0.92162439]
[1753875386916,0.39875,118110.0,118100.0,0.76664454]
[1753875392757,0.40721603,118110.0,118100.0,0.76664454]
[1753875392977,0.42414874,118110.0,118100.0,0.31709698]
[1753875393202,0.4241486,118110.0,118100.0,0.4480169]
[1753875393442,0.44108145,118110.0,118100.0,0.43108304]
[1753875393561,0.60194938,118110.0,118100.0,0.43108311]
[1753875393760,0.61041606,118110.0,118100.0,0.43955029]
[1753875393998,0.43261571,118110.0,118100.0,0.43955029]
[1753875394212,0.42414917,118110.0,118100.0,0.45648429]
[1753875394416,0.42414917,118110.0,118100.0,0.45648437]
[1753875394668,0.41568271,118110.0,118100.0,0.45648394]
[1753875395109,0.42414925,118110.0,118100.0,0.74967075]
[1753875395314,0.43261586,118110.0,118100.0,0.74967075]
[1753875396386,0.41568271,118110.0,118100.0,0.75813779]
[1753875396604,0.41568243,118110.0,118100.0,0.76660468]
[1753875397142,0.42414882,118110.0,118100.0,0.76660468]
[1753875397595,0.42414882,118110.0,118100.0,0.76660476]
[1753875397800,0.42414882,118110.0,118100.0,0.7666044]
[1753875398240,0.43261543,118110.0,118100.0,0.74120379]
[1753875398449,0.43261543,118110.0,118100.0,0.7496709]
[1753875399403,0.43261543,118110.0,118100.0,0.75813794]
[1753875400027,0.43261536,118110.0,118100.0,0.76660491]
[1753875400455,0.43261536,118110.0,118100.0,0.75813794]
[1753875401128,0.65367675,118110.0,118100.0,0.13492]
[1753875401392,0.64521036,118110.0,118100.0,0.13492]
[1753875403104,0.64266555,118110.0,118100.0,0.13492]
[1753875404215,0.65107789,118110.0,118100.0,0.13492]
[1753875404436,0.65107771,118110.0,118100.0,0.13492]
[1753875405557,0.96119838,118110.0,118100.0,0.004]
[1753875405774,0.96119838,118110.0,118100.0,0.13484]
[1753875405996,0.99454168,118110.0,118100.0,0.13484]
[1753875406209,0.68442101,118110.0,118100.0,0.13484]
[1753875406436,0.67652771,118110.0,118100.0,0.13484]
[1753875407104,0.68441914,118110.0,118100.0,0.13484]
[1753875409324,0.67652771,118110.0,118100.0,0.13484]
[1753875411450,0.98664838,118110.0,118100.0,0.13484]
[1753875411668,1.32664838,118110.0,118100.0,0.13484]
[1753875411871,1.33453478,118110.0,118100.0,0.13484]
[1753875412076,1.33453478,118110.0,118100.0,0.004]
[1753875412286,1.33453478,118110.0,118100.0,0.1348]
[1753875412664,1.3345339,118110.0,118100.0,0.1348]
[1753875413085,1.3335339,118110.0,118100.0,0.1308]
[1753875413494,1.3365339,118110.0,118100.0,0.1318]
[1753875413865,1.3395339,118110.0,118100.0,0.1328]
[1753875415110,1.3395339,118110.0,118100.0,0.002]
[1753875415276,1.3395339,118110.0,118100.0,0.1328]
[1753875417217,1.3395339,118110.0,118100.0,0.002]
[1753875417436,1.4240112,118110.0,118100.0,0.002]
[1753875418127,1.44146022,118110.0,118100.0,0.002]
[1753875418971,1.13133955,118110.0,118100.0,0.002]
[1753875419189,1.44146022,118110.0,118100.0,0.002]
[1753875419414,1.57226022,118110.0,118100.0,0.002]
[1753875419620,1.56633509,118110.0,118100.0,0.002]
[1753875419829,1.55845315,118110.0,118100.0,0.002]
[1753875420043,1.57224682,118110.0,118100.0,0.002]
[1753875420315,1.56633525,118110.0,118100.0,0.002]
[1753875420532,1.12541458,118110.0,118100.0,0.002]
[1753875420757,1.24829248,118110.0,118100.0,0.002]
[1753875420979,1.26208745,118110.0,118100.0,0.002]
[1753875422764,1.16016113,118110.0,118100.0,0.00416]
[1753875423216,1.02940113,118110.0,118100.0,0.00416]
[1753875423439,1.02940113,118110.0,118100.0,0.002]
[1753875423873,1.0294019,118110.0,118100.0,0.002]
[1753875426832,1.33952257,118110.0,118100.0,0.002]
[1753875429106,1.39598064,118110.0,118100.0,0.002]
[1753875429326,1.41415228,118110.0,118100.0,0.002]
[1753875430437,1.54487228,118110.0,118100.0,0.002]
[1753875431340,1.51830882,118110.0,118100.0,0.002]
[1753875432497,1.62023514,118110.0,118100.0,0.002]
[1753875432727,1.6467986,118110.0,118100.0,0.002]
[1753875433406,1.45962342,118110.0,118100.0,0.002]
[1753875433638,1.59030342,118110.0,118100.0,0.002]
[1753875436318,1.61289201,118110.0,118100.0,0.002]
[1753875437388,1.30277134,118110.0,118100.0,0.002]
[1753875437838,1.6129091,118110.0,118100.0,0.002]
[1753875439944,1.30278843,118110.0,118100.0,0.002]
[1753875440143,1.6128691,118110.0,118100.0,0.002]
[1753875440991,0.61947005,118110.0,118100.0,0.03147]
[1753875441219,0.58827005,118110.0,118100.0,0.34159067]
[1753875441640,0.92827005,118110.0,118100.0,0.34159067]
[1753875441864,0.91010524,118110.0,118100.0,0.34159067]
[1753875442079,0.91010524,118110.0,118100.0,0.03147]
[1753875442281,0.99458254,118110.0,118100.0,0.03147]
[1753875442485,1.01018254,118110.0,118100.0,0.03147]
[1753875443136,1.02628254,118110.0,118100.0,0.03147]
[1753875443551,1.04923254,118110.0,118100.0,0.00408]
[1753875443779,1.05128254,118110.0,118100.0,0.00408]
[1753875443994,1.04923254,118110.0,118100.0,0.00408]
[1753875444208,1.02628254,118110.0,118100.0,0.03147]
[1753875444417,1.0178702,118110.0,118100.0,0.03147]
[1753875444605,1.0017702,118110.0,118100.0,0.03147]
[1753875446642,1.0409202,118110.0,118100.0,0.03147]
[1753875446862,1.0409202,118110.0,118100.0,0.00408]
[1753875447358,1.35618087,118110.0,118100.0,0.002]
[1753875447591,1.48678087,118110.0,118100.0,0.002]
[1753875447833,1.56144505,118110.0,118100.0,0.002]
[1753875448046,1.66337137,118110.0,118100.0,0.002]
[1753875448266,1.66338349,118110.0,118100.0,0.002]
[1753875449236,1.86338349,118110.0,118100.0,0.002]
[1753875449674,1.88597208,118110.0,118100.0,0.002]
[1753875450149,2.11620581,118110.0,118100.0,1e-08]
[1753875450360,2.03716204,118110.0,118100.0,1e-08]
[1753875451542,2.05991308,118110.0,118100.0,1e-08]
[1753875452486,2.05990857,118110.0,118100.0,1e-08]
[1753875455330,2.02967484,118110.0,118100.0,1e-08]
[1753875455736,1.71955417,118110.0,118100.0,1e-08]
[1753875455960,2.02967484,118110.0,118100.0,1e-08]
[1753875456861,1.16620313,118110.0,118100.0,1e-08]
[1753875457070,1.58638478,118110.0,118100.0,0.00208001]
[1753875457283,1.6069238,118110.0,118100.0,1e-08]
[1753875461220,1.29680313,118110.0,118100.0,1e-08]
[1753875461446,1.60690616,118110.0,118100.0,1e-08]
[1753875463271,1.62269506,118110.0,118100.0,1e-08]
[1753875463522,1.29678549,118110.0,118100.0,1e-08]
[1753875463743,1.60690616,118110.0,118100.0,1e-08]
[1753875468849,1.29678549,118110.0,118100.0,1e-08]
[1753875469065,1.60690616,118110.0,118100.0,0.00203001]
[1753875469976,1.60690785,118110.0,118100.0,0.00203001]
[1753875470599,1.26861718,118110.0,118100.0,0.02861001]
[1753875470833,1.29300718,118110.0,118100.0,0.00203001]
[1753875471058,1.60525785,118110.0,118100.0,0.00203001]
[1753875471522,1.60837785,118110.0,118100.0,0.00203001]
[1753875474443,1.62417787,118110.0,118100.0,0.00203001]
[1753875476035,1.3140572,118110.0,118100.0,0.00203001]
[1753875476267,1.62417787,118110.0,118100.0,0.00203001]
[1753875477460,1.60485787,118110.0,118100.0,0.00203001]
[1753875477915,1.62005787,118110.0,118100.0,0.00203001]
[1753875479076,1.62318862,118110.0,118100.0,0.00203001]
[1753875480553,1.62318862,118110.0,118100.0,1e-08]
[1753875480979,1.61725653,118110.0,118100.0,1e-08]
[1753875481197,1.61727749,118110.0,118100.0,1e-08]
[1753875481440,1.64002853,118110.0,118100.0,1e-08]
[1753875481654,1.69648371,118110.0,118100.0,1e-08]
[1753875481864,1.68661307,118110.0,118100.0,1e-08]
[1753875482078,1.68665957,118110.0,118100.0,1e-08]
[1753875482768,1.69457136,118110.0,118100.0,1e-08]
[1753875483190,1.70248353,118110.0,118100.0,1e-08]
[1753875486565,1.64602835,118110.0,118100.0,1e-08]
[1753875486778,1.64604376,118110.0,118100.0,1e-08]
[1753875488164,1.33592309,118110.0,118100.0,1e-08]
[1753875488359,1.64604376,118110.0,118100.0,1e-08]
[1753875493281,1.51552376,118110.0,118100.0,1e-08]
[1753875493513,1.64596376,118110.0,118100.0,1e-08]
[1753875493971,1.64596376,118110.0,118100.0,0.00203001]
[1753875493972,1.33272309,118110.0,118100.0,0.00203001]
[1753875494202,1.20015309,118110.0,118100.0,0.00203001]
[1753875494443,1.20015309,118110.0,118100.0,0.02861001]
[1753875494676,1.33059309,118110.0,118100.0,0.02861001]
[1753875496478,1.33059309,118110.0,118100.0,0.00523001]
[1753875496707,1.33059309,118110.0,118100.0,0.00203001]
[1753875497812,1.64071376,118110.0,118100.0,0.00203001]
[1753875498727,1.64569599,118110.0,118100.0,0.00203001]
[1753875498953,1.64569599,118110.0,118100.0,1e-08]
[1753875500783,1.90215117,118110.0,118100.0,1e-08]
[1753875500981,1.90960349,118110.0,118100.0,1e-08]
[1753875501426,1.93243022,118110.0,118100.0,1e-08]
[1753875502543,6.04209822,118110.0,118100.0,1e-08]
[1753875502768,0.00847012,118060.0,118050.0,0.09892613]
[1753875503044,0.90294797,118060.0,118050.0,0.09628613]
[1753875503249,0.9108679,118060.0,118050.0,0.09628613]
[1753875503509,0.96063515,118060.0,118050.0,0.07008613]
[1753875503719,1.28655582,118060.0,118050.0,0.07008613]
[1753875503939,0.97643515,118060.0,118050.0,0.07008613]
[1753875504164,0.97450366,118060.0,118050.0,0.09628613]
[1753875504389,0.97449755,118060.0,118050.0,0.09628613]
[1753875504610,0.97549755,118060.0,118050.0,0.09828613]
[1753875504821,0.97449755,118060.0,118050.0,0.09628613]
[1753875505292,0.97649755,118060.0,118050.0,0.09728613]
[1753875506404,0.96958373,118060.0,118050.0,0.09728613]
[1753875507084,0.93022373,118060.0,118050.0,0.09728613]
[1753875507309,0.93021069,118060.0,118050.0,0.09728613]
[1753875508626,0.93020844,118060.0,118050.0,0.09728613]
[1753875509122,0.93027937,118060.0,118050.0,0.4074068]
[1753875509321,0.71189239,118060.0,118050.0,0.61629737]
[1753875509556,0.36453424,118060.0,118050.0,0.60782653]
[1753875509827,0.37300436,118060.0,118050.0,0.61629737]
[1753875510027,0.37300414,118060.0,118050.0,0.63323883]
[1753875510237,0.35860803,118060.0,118050.0,0.63323883]
[1753875510462,0.35860803,118060.0,118050.0,0.64170945]
[1753875510906,0.36707794,118060.0,118050.0,0.63323883]
[1753875511142,0.34166851,118060.0,118050.0,0.65017993]
[1753875511372,0.3501382,118060.0,118050.0,0.65017993]
[1753875511597,0.34166851,118060.0,118050.0,0.65017993]
[1753875511819,0.3501382,118060.0,118050.0,0.65017993]
[1753875512272,0.34166851,118060.0,118050.0,0.65017993]
[1753875513416,0.35013827,118060.0,118050.0,0.65018]
[1753875513636,0.34166851,118060.0,118050.0,0.65017964]
[1753875515345,0.35860796,118060.0,118050.0,0.64170916]
[1753875515585,0.34166851,118060.0,118050.0,0.64170916]
[1753875515777,0.34166851,118060.0,118050.0,0.65017964]
[1753875516225,0.34166851,118060.0,118050.0,0.73465694]
[1753875517107,0.34066851,118060.0,118050.0,0.73465694]
[1753875517546,0.33966851,118060.0,118050.0,0.73365694]
[1753875517758,0.34066851,118060.0,118050.0,0.73565694]
[1753875523062,0.34066851,118060.0,118050.0,0.82013424]
[1753875523292,0.34066851,118060.0,118050.0,1.13025491]
[1753875523749,0.34066851,118060.0,118050.0,1.47025491]
[1753875524243,0.33966851,118060.0,118050.0,1.47025491]
[1753875524469,0.33966851,118060.0,118050.0,1.46925491]
[1753875524914,0.34066851,118060.0,118050.0,1.47325491]
[1753875525136,0.33966851,118060.0,118050.0,1.46925491]
[1753875525585,0.34066851,118060.0,118050.0,1.47325491]
[1753875525818,0.34066851,118060.0,118050.0,0.85301357]
[1753875526048,0.33966851,118060.0,118050.0,1.09420811]
[1753875526489,0.34066851,118060.0,118050.0,1.09620811]
[1753875526930,0.34066851,118060.0,118050.0,0.88648811]
[1753875527368,0.34066851,118060.0,118050.0,0.80201081]
[1753875548086,0.34066851,118060.0,118050.0,0.78651081]
[1753875548543,0.36326851,118060.0,118050.0,0.78651081]
[1753875549379,0.36326851,118060.0,118050.0,0.77101081]
[1753875550052,0.36326851,118060.0,118050.0,0.74481081]
[1753875550273,0.36521851,118060.0,118050.0,0.74481081]
[1753875550703,0.36521851,118060.0,118050.0,0.82928811]
[1753875552040,0.36521851,118060.0,118050.0,0.69900811]
[1753875552252,0.39963851,118060.0,118050.0,0.74253081]
[1753875555144,0.36521851,118060.0,118050.0,0.74462081]
[1753875556249,0.36521851,118060.0,118050.0,0.61446081]
[1753875556467,0.38141851,118060.0,118050.0,0.74458081]
[1753875556704,0.38443851,118060.0,118050.0,0.74458081]
[1753875558842,0.39963851,118060.0,118050.0,0.43237014]
[1753875559062,0.39963851,118060.0,118050.0,0.74249081]
[1753875559962,0.39963851,118060.0,118050.0,0.82905811]
[1753875560188,0.38141851,118060.0,118050.0,0.82905811]
[1753875561062,0.37946851,118060.0,118050.0,0.82905811]
[1753875562412,0.36326851,118060.0,118050.0,0.82905811]
[1753875562637,0.34066851,118060.0,118050.0,0.88802811]
[1753875563507,0.34066851,118060.0,118050.0,1.19814878]
[1753875563945,0.34066851,118060.0,118050.0,0.88802811]
[1753875569331,0.34066851,118060.0,118050.0,1.19814878]
[1753875574078,0.34066851,118060.0,118050.0,1.46024878]
[1753875577054,0.34066851,118060.0,118050.0,1.80024878]
[1753875577523,0.34066851,118060.0,118050.0,2.02072878]
[1753875579049,0.34066851,118060.0,118050.0,1.68072878]
[1753875579297,0.0586,118080.0,118070.0,0.81408015]
[1753875579558,0.04504854,118080.0,118070.0,1.11516475]
[1753875580555,0.04504854,118080.0,118070.0,1.12352818]
[1753875580785,0.04504854,118080.0,118070.0,1.12552818]
[1753875580786,0.04604854,118080.0,118070.0,1.12552818]
[1753875582188,0.02499854,118080.0,118070.0,1.15339818]
[1753875582409,0.02599854,118080.0,118070.0,1.15439818]
[1753875582640,0.02599854,118080.0,118070.0,1.12652818]
[1753875582872,0.02809854,118080.0,118070.0,1.12652818]
[1753875583120,0.06244854,118080.0,118070.0,0.68427751]
[1753875583374,0.06244854,118080.0,118070.0,0.81427751]
[1753875583603,0.06244854,118080.0,118070.0,0.83963828]
[1753875589178,0.05739854,118080.0,118070.0,1.15188895]
[1753875589394,0.01724854,118080.0,118070.0,1.17793895]
[1753875590087,0.04056854,118080.0,118070.0,1.17793895]
[1753875591014,0.05616854,118080.0,118070.0,1.17793895]
[1753875592379,0.03284854,118080.0,118070.0,1.17793895]
[1753875593053,0.05616854,118080.0,118070.0,1.17793895]
[1753875594145,0.00204854,118080.0,118070.0,1.17793895]
[1753875597031,0.01744854,118080.0,118070.0,1.17793895]
[1753875597253,0.03354854,118080.0,118070.0,1.17793895]
[1753875597466,0.05686854,118080.0,118070.0,1.17793895]
[1753875597694,0.05686854,118080.0,118070.0,1.15188895]
[1753875597918,0.05686854,118080.0,118070.0,1.17793895]
[1753875599033,0.03354854,118080.0,118070.0,1.17793895]
[1753875599257,0.00204854,118080.0,118070.0,1.17793895]
[1753875599751,0.00204854,118080.0,118070.0,1.20973895]
[1753875600198,0.00104854,118080.0,118070.0,1.20773895]
[1753875601210,0.05362,118100.0,118090.0,0.19476583]
[1753875601450,0.05382,118110.0,118100.0,0.19474933]
[1753875601689,0.05592855,118110.0,118100.0,0.638]
[1753875601954,0.05907855,118110.0,118100.0,0.63587]
[1753875602994,0.06107855,118110.0,118100.0,0.7213473]
[1753875604227,0.05586855,118110.0,118100.0,1.05652797]
[1753875604451,0.00204855,118110.0,118100.0,1.14412527]
[1753875605654,0.00204855,118110.0,118100.0,1.48412527]
[1753875605897,4.855e-05,118110.0,118100.0,1.48312527]
[1753875606408,0.00104855,118110.0,118100.0,1.48312527]
[1753875606847,0.00104855,118110.0,118100.0,1.48412527]
[1753875607539,0.00104855,118110.0,118100.0,1.48512527]
[1753875607753,0.00104855,118110.0,118100.0,1.50032527]
[1753875607981,0.00104855,118110.0,118100.0,1.51592527]
[1753875608420,0.05747,118130.0,118120.0,0.19471636]
[1753875608651,0.05957854,118130.0,118120.0,1.06865199]
[1753875609715,0.03104854,118130.0,118120.0,1.09683199]
[1753875610176,0.05836854,118130.0,118120.0,1.09783199]
[1753875610384,0.05642854,118130.0,118120.0,1.07078199]
[1753875610831,0.06057854,118130.0,118120.0,1.07178199]
[1753875611034,0.06057854,118130.0,118120.0,1.06961199]
[1753875612352,0.06357854,118130.0,118120.0,1.06961199]
[1753875613730,0.06057854,118130.0,118120.0,1.06961199]
[1753875620394,0.06057854,118130.0,118120.0,0.93853199]
[1753875620616,0.06057854,118130.0,118120.0,1.06937199]
[1753875624555,0.06057854,118130.0,118120.0,0.44913065]
[1753875624775,0.06057854,118130.0,118120.0,1.06937199]
[1753875625981,0.06057854,118130.0,118120.0,0.28019366]
[1753875626229,0.09331477,118130.0,118120.0,0.72103433]
[1753875626475,0.08429068,118130.0,118120.0,0.72103433]
[1753875626700,0.09275542,118130.0,118120.0,0.72103433]
[1753875627144,0.08429068,118130.0,118120.0,0.72103433]
[1753875627362,0.09868644,118130.0,118120.0,0.80551163]
[1753875627788,0.10715126,118130.0,118120.0,0.80551163]
[1753875628620,0.10715126,118130.0,118120.0,0.49539096]
[1753875628821,0.10715126,118130.0,118120.0,0.80551163]
[1753875629033,0.09868637,118130.0,118120.0,0.80551163]
[1753875629275,0.09022177,118130.0,118120.0,0.80551163]
[1753875629531,0.09022177,118130.0,118120.0,1.1156323]
[1753875629777,0.09022177,118130.0,118120.0,0.80551163]
[1753875630303,0.09022177,118130.0,118120.0,1.1156323]
[1753875630739,0.09022177,118130.0,118120.0,0.67479163]
[1753875630964,0.31083534,118130.0,118120.0,0.70402319]
[1753875631189,0.63390592,118130.0,118120.0,0.0854773]
[1753875631429,0.63390592,118130.0,118120.0,0.001]
[1753875631430,0.62544089,118130.0,118120.0,0.001]
[1753875631709,0.62544089,118130.0,118120.0,0.13164]
[1753875631985,0.65088189,118130.0,118120.0,0.13164]
[1753875632713,0.65088189,118130.0,118120.0,0.31789111]
[1753875632975,0.65088189,118130.0,118120.0,0.61954596]
[1753875633205,0.65088189,118130.0,118120.0,0.63647767]
[1753875633446,0.65088189,118130.0,118120.0,0.62801185]
[1753875633867,0.65088189,118130.0,118120.0,0.44176067]
[1753875634090,0.65088189,118130.0,118120.0,0.45022663]
[1753875634314,0.98950189,118130.0,118120.0,0.45869252]
[1753875634515,0.98950189,118130.0,118120.0,0.61954596]
[1753875634952,0.98950189,118130.0,118120.0,0.62801185]
[1753875635596,0.98950189,118130.0,118120.0,0.44176067]
[1753875636674,0.98950189,118130.0,118120.0,0.44168067]
[1753875637800,0.98950189,118130.0,118120.0,0.45014663]
[1753875638143,0.98950189,118130.0,118120.0,0.31112067]
[1753875638249,0.98953556,118130.0,118120.0,0.44164067]
[1753875639018,0.64953556,118130.0,118120.0,0.44164067]
[1753875640885,0.64953556,118130.0,118120.0,0.13152]
[1753875642451,0.64952543,118130.0,118120.0,0.13152]
[1753875644090,0.64953033,118130.0,118120.0,0.13152]
[1753875646613,0.98953033,118130.0,118120.0,0.13152]
[1753875648142,1.07400763,118130.0,118120.0,0.001]
[1753875648381,1.07400763,118130.0,118120.0,0.13128]
[1753875649299,1.07500763,118130.0,118120.0,0.13028]
[1753875649777,1.07800763,118130.0,118120.0,0.13128]
[1753875649995,1.07500763,118130.0,118120.0,0.13028]
[1753875650224,1.07500688,118130.0,118120.0,0.13028]
[1753875650464,1.07900688,118130.0,118120.0,0.13128]
[1753875650977,1.07700688,118130.0,118120.0,0.13128]
[1753875651457,1.08000688,118130.0,118120.0,0.13128]
[1753875651692,1.05456588,118130.0,118120.0,0.13128]
[1753875652845,1.05457785,118130.0,118120.0,0.13128]
[1753875654937,1.44917582,118130.0,118120.0,0.13116]
[1753875656093,1.44517582,118130.0,118120.0,0.13016]
[1753875656319,1.44217582,118130.0,118120.0,0.13016]
[1753875656560,1.44817582,118130.0,118120.0,0.13112]
[1753875656792,1.45217582,118130.0,118120.0,0.13212]
[1753875657483,1.14205515,118130.0,118120.0,0.13212]
[1753875657705,1.45217582,118130.0,118120.0,0.002]
[1753875658439,1.47762182,118130.0,118120.0,0.002]
[1753875660163,1.95774182,118130.0,118120.0,0.002]
[1753875660414,1.95774182,118130.0,118120.0,1e-08]
[1753875660665,1.98433547,118130.0,118120.0,1e-08]
[1753875661137,0.57511555,118110.0,118100.0,0.19800613]
[1753875661405,1.29621016,118110.0,118100.0,0.06792613]
[1753875661886,1.03730949,118110.0,118100.0,0.06792613]
[1753875664313,1.04760899,118110.0,118100.0,0.06892613]
[1753875665223,1.04760879,118110.0,118100.0,0.06892613]
[1753875665675,1.0278642,118110.0,118100.0,0.06892613]
[1753875665913,1.02786346,118110.0,118100.0,0.001]
[1753875666382,1.33798413,118110.0,118100.0,0.001]
[1753875666618,1.35972595,118110.0,118100.0,0.001]
[1753875666844,1.36721802,118110.0,118100.0,0.001]
[1753875667066,1.04919145,118110.0,118100.0,0.001]
[1753875667297,1.35931212,118110.0,118100.0,0.001]
[1753875667544,1.38105356,118110.0,118100.0,0.001]
[1753875668248,1.37512408,118110.0,118100.0,0.001]
[1753875668443,1.50516408,118110.0,118100.0,0.001]
[1753875668710,1.47592991,118110.0,118100.0,0.001]
[1753875668923,1.48976571,118110.0,118100.0,0.001]